[Event "Late-Titled-Tuesday-Blitz-September-19-2023"]
[Site "Chess.com"]
[Date "2023.09.19"]
[Round "3"]
[White "farzadbfd"]
[Black "DishonorOnYourCow"]
[Result "1/2-1/2"]
[WhiteElo "2685"]
[BlackElo "2490"]
[TimeControl "180+1"]
[EndTime "14:26:07 PDT"]
[Termination "Game drawn by repetition"]

1. d4 {[%clk 0:03:00.9]} 1... Nf6 {[%clk 0:02:59.3]} 2. Nf3 {[%clk 0:03:01.3]}
2... g6 {[%clk 0:02:58.2]} 3. Bg5 {[%clk 0:03:01]} 3... Ne4 {[%clk 0:02:56.2]}
4. Bf4 {[%clk 0:03:00.7]} 4... d5 {[%clk 0:02:56.2]} 5. e3 {[%clk 0:03:00.4]}
5... Bg7 {[%clk 0:02:55.6]} 6. Bd3 {[%clk 0:02:59.1]} 6... c5 {[%clk 0:02:55.2]}
7. c3 {[%clk 0:02:59.4]} 7... cxd4 {[%clk 0:02:54.3]} 8. exd4 {[%clk 0:02:57.6]}
8... Nf6 {[%clk 0:02:54.2]} 9. h3 {[%clk 0:02:56.7]} 9... O-O {[%clk 0:02:53.4]}
10. O-O {[%clk 0:02:56.5]} 10... Nc6 {[%clk 0:02:53.6]} 11. Re1 {[%clk
0:02:55.7]} 11... Bf5 {[%clk 0:02:50.9]} 12. Bf1 {[%clk 0:02:49.4]} 12... Qb6
{[%clk 0:02:38.9]} 13. Qc1 {[%clk 0:02:30.4]} 13... Rac8 {[%clk 0:02:35.5]} 14.
Nbd2 {[%clk 0:02:27]} 14... Ne4 {[%clk 0:02:33.3]} 15. g4 {[%clk 0:02:25.3]}
15... Nxd2 {[%clk 0:02:29]} 16. Qxd2 {[%clk 0:02:26.2]} 16... Be4 {[%clk
0:02:27.5]} 17. Ng5 {[%clk 0:02:20.4]} 17... e5 {[%clk 0:02:02.2]} 18. dxe5
{[%clk 0:02:00.8]} 18... Nxe5 {[%clk 0:02:01.8]} 19. Bxe5 {[%clk 0:02:00.1]}
19... Bxe5 {[%clk 0:02:02]} 20. Nxe4 {[%clk 0:01:58.6]} 20... dxe4 {[%clk
0:02:01.1]} 21. Rxe4 {[%clk 0:01:57.9]} 21... Bc7 {[%clk 0:01:58.2]} 22. Rae1
{[%clk 0:01:23.4]} 22... Rcd8 {[%clk 0:01:57.4]} 23. Qe2 {[%clk 0:01:20.5]}
23... Qd6 {[%clk 0:01:54.3]} 24. Bg2 {[%clk 0:01:19.8]} 24... Qh2+ {[%clk
0:01:49.2]} 25. Kf1 {[%clk 0:01:20]} 25... Bb6 {[%clk 0:00:58.6]} 26. Qf3 {[%clk
0:00:55.4]} 26... f5 {[%clk 0:00:54.1]} 27. Qf4 {[%clk 0:00:41.1]} 27... fxe4
{[%clk 0:00:40.4]} 28. Qxh2 {[%clk 0:00:39.7]} 28... Rxf2+ {[%clk 0:00:40]} 29.
Kg1 {[%clk 0:00:39.5]} 29... Re2+ {[%clk 0:00:26.8]} 30. Kf1 {[%clk 0:00:37]}
30... Rf2+ {[%clk 0:00:19.3]} 31. Kg1 {[%clk 0:00:37.1]} 31... Re2+ {[%clk
0:00:14.1]} 32. Kf1 {[%clk 0:00:35.9]} 32... Rf2+ {[%clk 0:00:13.6]} 1/2-1/2

[Event "Late-Titled-Tuesday-Blitz-September-19-2023"]
[Site "Chess.com"]
[Date "2023.09.19"]
[Round "3"]
[White "GMJustin"]
[Black "RIPOL"]
[Result "1/2-1/2"]
[WhiteElo "2254"]
[BlackElo "2411"]
[TimeControl "180+1"]
[EndTime "14:26:07 PDT"]
[Termination "Game drawn by repetition"]

1. d4 {[%clk 0:02:42.3]} 1... Nf6 {[%clk 0:02:59.1]} 2. c4 {[%clk 0:02:41.1]}
2... e6 {[%clk 0:02:58.8]} 3. Nf3 {[%clk 0:02:40.6]} 3... d5 {[%clk 0:02:57.6]}
4. Nbd2 {[%clk 0:02:38.8]} 4... c5 {[%clk 0:02:50.8]} 5. cxd5 {[%clk 0:02:34.7]}
5... exd5 {[%clk 0:02:50.4]} 6. dxc5 {[%clk 0:02:11]} 6... Bxc5 {[%clk
0:02:48.3]} 7. Nb3 {[%clk 0:02:10.5]} 7... Bb6 {[%clk 0:02:45.8]} 8. Bf4 {[%clk
0:02:02.1]} 8... Nc6 {[%clk 0:02:43.2]} 9. e3 {[%clk 0:01:59.8]} 9... O-O {[%clk
0:02:41]} 10. Be2 {[%clk 0:01:56.1]} 10... Bg4 {[%clk 0:02:15.9]} 11. O-O {[%clk
0:01:53.4]} 11... Re8 {[%clk 0:02:15]} 12. h3 {[%clk 0:01:48.8]} 12... Bh5
{[%clk 0:02:14.1]} 13. Rc1 {[%clk 0:01:37.3]} 13... Ne4 {[%clk 0:02:04.5]} 14.
Nfd4 {[%clk 0:01:27.3]} 14... Bxe2 {[%clk 0:02:00.2]} 15. Nxe2 {[%clk
0:01:26.1]} 15... Qf6 {[%clk 0:01:47.7]} 16. Nbd4 {[%clk 0:01:09.1]} 16... Nxd4
{[%clk 0:01:41.8]} 17. Nxd4 {[%clk 0:01:08.7]} 17... Bxd4 {[%clk 0:01:41]} 18.
Qxd4 {[%clk 0:01:08.1]} 18... Qxd4 {[%clk 0:01:39.5]} 19. exd4 {[%clk
0:01:07.8]} 19... Rac8 {[%clk 0:01:38.5]} 20. f3 {[%clk 0:01:07]} 20... Nf6
{[%clk 0:01:36.3]} 21. Kf2 {[%clk 0:01:05.8]} 21... h6 {[%clk 0:01:35.3]} 22.
Rxc8 {[%clk 0:01:01.3]} 22... Rxc8 {[%clk 0:01:34]} 23. Rc1 {[%clk 0:01:01.9]}
23... Rxc1 {[%clk 0:01:32.4]} 24. Bxc1 {[%clk 0:01:02]} 24... Kf8 {[%clk
0:01:32.8]} 25. Bf4 {[%clk 0:01:00.9]} 25... Ke7 {[%clk 0:01:32]} 26. Be5 {[%clk
0:01:00.1]} 26... Ne8 {[%clk 0:01:30.3]} 27. Ke3 {[%clk 0:01:00.1]} 27... f6
{[%clk 0:01:28.5]} 28. Bb8 {[%clk 0:00:59.8]} 28... a6 {[%clk 0:01:27]} 29. a4
{[%clk 0:00:59.7]} 29... g6 {[%clk 0:01:20.8]} 30. g4 {[%clk 0:00:59]} 30... Ng7
{[%clk 0:01:18.4]} 31. Bg3 {[%clk 0:00:55.1]} 31... Ne6 {[%clk 0:01:17]} 32. h4
{[%clk 0:00:50.8]} 32... f5 {[%clk 0:01:16.2]} 33. Be5 {[%clk 0:00:48.8]} 33...
h5 {[%clk 0:01:13.8]} 34. g5 {[%clk 0:00:44.3]} 34... Kd7 {[%clk 0:01:10.8]} 35.
b4 {[%clk 0:00:42.2]} 35... b5 {[%clk 0:01:03.4]} 36. axb5 {[%clk 0:00:34.9]}
36... axb5 {[%clk 0:01:02.2]} 37. f4 {[%clk 0:00:35.2]} 37... Nd8 {[%clk
0:00:56.5]} 38. Kd3 {[%clk 0:00:35.2]} 38... Nc6 {[%clk 0:00:55.7]} 39. Kc3
{[%clk 0:00:35.2]} 39... Ke6 {[%clk 0:00:53.6]} 40. Bf6 {[%clk 0:00:34.1]} 40...
Kd7 {[%clk 0:00:52.4]} 41. Be5 {[%clk 0:00:33.1]} 41... Ke6 {[%clk 0:00:52.1]}
42. Bf6 {[%clk 0:00:33.2]} 42... Kd7 {[%clk 0:00:51.8]} 43. Be5 {[%clk 0:00:33]}
1/2-1/2

[Event "Late-Titled-Tuesday-Blitz-September-19-2023"]
[Site "Chess.com"]
[Date "2023.09.19"]
[Round "3"]
[White "biostatistician"]
[Black "dretch"]
[Result "0-1"]
[WhiteElo "2574"]
[BlackElo "2846"]
[TimeControl "180+1"]
[EndTime "14:26:11 PDT"]
[Termination "dretch won by resignation"]

1. d4 {[%clk 0:03:00]} 1... d5 {[%clk 0:02:37.9]} 2. Nf3 {[%clk 0:02:59.9]} 2...
Nf6 {[%clk 0:02:37.7]} 3. c4 {[%clk 0:03:00.8]} 3... c6 {[%clk 0:02:37.9]} 4.
Nc3 {[%clk 0:03:00.9]} 4... dxc4 {[%clk 0:02:37.8]} 5. a4 {[%clk 0:02:58.8]}
5... Bf5 {[%clk 0:02:35.5]} 6. e3 {[%clk 0:02:57.6]} 6... e6 {[%clk 0:02:34.7]}
7. Bxc4 {[%clk 0:02:58]} 7... Bb4 {[%clk 0:02:35]} 8. O-O {[%clk 0:02:58.4]}
8... Nbd7 {[%clk 0:02:34]} 9. Qe2 {[%clk 0:02:58.8]} 9... Bg4 {[%clk 0:02:29.4]}
10. e4 {[%clk 0:02:55.1]} 10... Nb6 {[%clk 0:02:23.5]} 11. Bb3 {[%clk
0:02:40.7]} 11... Bxf3 {[%clk 0:02:21.1]} 12. Qxf3 {[%clk 0:02:41.4]} 12... Qxd4
{[%clk 0:02:21]} 13. a5 {[%clk 0:02:36.2]} 13... Nbd7 {[%clk 0:02:19.1]} 14. Be3
{[%clk 0:02:33]} 14... Qe5 {[%clk 0:02:17.8]} 15. Bf4 {[%clk 0:02:29.9]} 15...
Qh5 {[%clk 0:02:16.4]} 16. Qg3 {[%clk 0:02:21.5]} 16... O-O {[%clk 0:02:09.4]}
17. e5 {[%clk 0:02:21.3]} 17... Bxc3 {[%clk 0:02:01.2]} 18. bxc3 {[%clk
0:02:22.2]} 18... Nd5 {[%clk 0:02:00.2]} 19. a6 {[%clk 0:02:09.9]} 19... b6
{[%clk 0:01:47.9]} 20. Rfe1 {[%clk 0:01:42.2]} 20... Nxf4 {[%clk 0:01:41]} 21.
Qxf4 {[%clk 0:01:43.1]} 21... Nc5 {[%clk 0:01:41.1]} 22. Bc2 {[%clk 0:01:41.5]}
22... Rad8 {[%clk 0:01:37.7]} 23. Re3 {[%clk 0:01:39.7]} 23... f5 {[%clk
0:01:09.4]} 24. exf6 {[%clk 0:01:32.8]} 24... Rxf6 {[%clk 0:01:07.2]} 25. Qc7
{[%clk 0:00:57.2]} 25... Rd2 {[%clk 0:00:59.6]} 26. Rg3 {[%clk 0:00:54.8]} 26...
Qf7 {[%clk 0:00:53.9]} 27. Qb8+ {[%clk 0:00:44.7]} 27... Qf8 {[%clk 0:00:50.8]}
28. Qxa7 {[%clk 0:00:35.9]} 28... Rxc2 {[%clk 0:00:49.1]} 29. Qxb6 {[%clk
0:00:36.3]} 29... Rcxf2 {[%clk 0:00:45.4]} 30. h3 {[%clk 0:00:34.7]} 30... Ne4
{[%clk 0:00:42.2]} 31. Rg4 {[%clk 0:00:22.2]} 31... Rf1+ {[%clk 0:00:40.6]} 32.
Rxf1 {[%clk 0:00:22.6]} 32... Rxf1+ {[%clk 0:00:40.7]} 33. Kh2 {[%clk
0:00:23.5]} 33... Qd6+ {[%clk 0:00:39.9]} 0-1

[Event "Late-Titled-Tuesday-Blitz-September-19-2023"]
[Site "Chess.com"]
[Date "2023.09.19"]
[Round "3"]
[White "MAGMAchess02"]
[Black "maciek_92"]
[Result "0-1"]
[WhiteElo "2370"]
[BlackElo "2734"]
[TimeControl "180+1"]
[EndTime "14:26:13 PDT"]
[Termination "maciek_92 won on time"]

1. Nf3 {[%clk 0:03:00]} 1... Nf6 {[%clk 0:02:59.7]} 2. c4 {[%clk 0:02:58]} 2...
e6 {[%clk 0:03:00]} 3. g3 {[%clk 0:02:58]} 3... b6 {[%clk 0:03:00.4]} 4. Bg2
{[%clk 0:02:58.8]} 4... Bb7 {[%clk 0:03:01.2]} 5. O-O {[%clk 0:02:59.3]} 5...
Be7 {[%clk 0:03:02]} 6. b3 {[%clk 0:02:58.4]} 6... O-O {[%clk 0:02:55.8]} 7. Bb2
{[%clk 0:02:58.3]} 7... d5 {[%clk 0:02:55.5]} 8. Ne5 {[%clk 0:02:48.9]} 8...
Nbd7 {[%clk 0:02:51.4]} 9. e3 {[%clk 0:02:46.5]} 9... a5 {[%clk 0:02:45.6]} 10.
d3 {[%clk 0:02:40.5]} 10... a4 {[%clk 0:02:41]} 11. Nd2 {[%clk 0:02:38.7]} 11...
c5 {[%clk 0:02:23.3]} 12. bxa4 {[%clk 0:02:27.8]} 12... Nxe5 {[%clk 0:02:22.4]}
13. Bxe5 {[%clk 0:02:26.8]} 13... Bc6 {[%clk 0:02:22.9]} 14. Qe2 {[%clk
0:01:41.3]} 14... Rxa4 {[%clk 0:02:20.6]} 15. Rfb1 {[%clk 0:01:39.7]} 15... Nd7
{[%clk 0:02:20.5]} 16. Bc3 {[%clk 0:01:38.3]} 16... Qa8 {[%clk 0:02:09.7]} 17.
Rb2 {[%clk 0:00:58.9]} 17... Ra3 {[%clk 0:02:02.5]} 18. Rc2 {[%clk 0:00:54.4]}
18... b5 {[%clk 0:01:36]} 19. cxd5 {[%clk 0:00:26.3]} 19... exd5 {[%clk
0:01:33.6]} 20. Qg4 {[%clk 0:00:19.6]} 20... Nf6 {[%clk 0:01:16.4]} 21. Qf5
{[%clk 0:00:06.1]} 21... Re8 {[%clk 0:01:00.5]} 22. Nf3 {[%clk 0:00:07]} 22...
d4 {[%clk 0:00:49.2]} 23. exd4 {[%clk 0:00:06.3]} 23... g6 {[%clk 0:00:48.7]}
24. Qf4 {[%clk 0:00:05]} 24... Nd5 {[%clk 0:00:48.7]} 25. Qd2 {[%clk 0:00:04.5]}
25... Nxc3 {[%clk 0:00:48.4]} 26. Rxc3 {[%clk 0:00:02.4]} 26... Rxc3 {[%clk
0:00:47.4]} 27. Qxc3 {[%clk 0:00:03.1]} 27... Bxf3 {[%clk 0:00:46.7]} 28. Bxf3
{[%clk 0:00:03.3]} 28... Qxf3 {[%clk 0:00:47.6]} 29. dxc5 {[%clk 0:00:03.8]}
29... Bf6 {[%clk 0:00:48.3]} 0-1

[Event "Late-Titled-Tuesday-Blitz-September-19-2023"]
[Site "Chess.com"]
[Date "2023.09.19"]
[Round "3"]
[White "Nikachu"]
[Black "oskariot"]
[Result "0-1"]
[WhiteElo "2199"]
[BlackElo "2728"]
[TimeControl "180+1"]
[EndTime "14:26:13 PDT"]
[Termination "oskariot won by resignation"]

1. e4 {[%clk 0:03:00.9]} 1... c5 {[%clk 0:02:43.3]} 2. Nf3 {[%clk 0:03:00.4]}
2... e6 {[%clk 0:02:43]} 3. d4 {[%clk 0:03:00.6]} 3... cxd4 {[%clk 0:02:43.9]}
4. Nxd4 {[%clk 0:03:00.8]} 4... Nf6 {[%clk 0:02:44.6]} 5. Nc3 {[%clk 0:03:00.3]}
5... d6 {[%clk 0:02:45]} 6. Bc4 {[%clk 0:02:59.7]} 6... Be7 {[%clk 0:02:43.6]}
7. Bb3 {[%clk 0:02:58.4]} 7... O-O {[%clk 0:02:42.5]} 8. g4 {[%clk 0:02:58]}
8... d5 {[%clk 0:02:34.1]} 9. exd5 {[%clk 0:02:41.7]} 9... Nxd5 {[%clk
0:02:26.7]} 10. Nxd5 {[%clk 0:02:41]} 10... exd5 {[%clk 0:02:27.6]} 11. Be3
{[%clk 0:02:40]} 11... Nc6 {[%clk 0:02:25.3]} 12. Qf3 {[%clk 0:01:49.4]} 12...
Be6 {[%clk 0:01:56.9]} 13. O-O-O {[%clk 0:01:48.3]} 13... Ne5 {[%clk 0:01:56]}
14. Qg3 {[%clk 0:01:41.6]} 14... Nc6 {[%clk 0:01:23.5]} 15. Nf5 {[%clk
0:01:36.2]} 15... a5 {[%clk 0:01:10.4]} 16. a4 {[%clk 0:01:28.6]} 16... Bxf5
{[%clk 0:00:35.2]} 17. gxf5 {[%clk 0:01:28.6]} 17... d4 {[%clk 0:00:35.7]} 18.
Rhg1 {[%clk 0:01:06.7]} 18... Bf6 {[%clk 0:00:21.8]} 19. Bh6 {[%clk 0:01:06.3]}
19... Qb8 {[%clk 0:00:21.6]} 20. Bxg7 {[%clk 0:01:02.2]} 20... Qxg3 {[%clk
0:00:21.9]} 21. Rxg3 {[%clk 0:01:02.8]} 21... Bxg7 {[%clk 0:00:21.8]} 22. Rdg1
{[%clk 0:01:03.5]} 22... Kh8 {[%clk 0:00:20.7]} 23. Rxg7 {[%clk 0:01:03.5]}
23... Ne5 {[%clk 0:00:13.1]} 24. f4 {[%clk 0:01:00.1]} 24... Ng6 {[%clk
0:00:13.4]} 25. fxg6 {[%clk 0:00:57.6]} 25... Kxg7 {[%clk 0:00:13.5]} 26. gxf7+
{[%clk 0:00:58.3]} 26... Kf6 {[%clk 0:00:13.5]} 27. Kd2 {[%clk 0:00:52.1]} 27...
Kf5 {[%clk 0:00:12.6]} 28. Rg7 {[%clk 0:00:47.4]} 28... h6 {[%clk 0:00:11.4]}
29. Rh7 {[%clk 0:00:46.4]} 29... Kg6 {[%clk 0:00:12]} 30. f5+ {[%clk 0:00:28.9]}
30... Kxh7 {[%clk 0:00:11.5]} 0-1

[Event "Late-Titled-Tuesday-Blitz-September-19-2023"]
[Site "Chess.com"]
[Date "2023.09.19"]
[Round "3"]
[White "Michalczak"]
[Black "FrancescoSorcinelli"]
[Result "1-0"]
[WhiteElo "2509"]
[BlackElo "2136"]
[TimeControl "180+1"]
[EndTime "14:26:15 PDT"]
[Termination "Michalczak won on time"]

1. e4 {[%clk 0:03:00.9]} 1... g6 {[%clk 0:03:00.1]} 2. d4 {[%clk 0:03:00.5]}
2... Bg7 {[%clk 0:03:00.1]} 3. Nc3 {[%clk 0:02:59.5]} 3... d6 {[%clk 0:03:00.5]}
4. Be3 {[%clk 0:02:55.6]} 4... a6 {[%clk 0:03:00.8]} 5. h4 {[%clk 0:02:55.4]}
5... h5 {[%clk 0:03:00.5]} 6. Nh3 {[%clk 0:02:54.7]} 6... Bxh3 {[%clk 0:02:59]}
7. Rxh3 {[%clk 0:02:54.5]} 7... b5 {[%clk 0:02:59.6]} 8. Qe2 {[%clk 0:02:41.5]}
8... Nd7 {[%clk 0:02:58.3]} 9. O-O-O {[%clk 0:02:39]} 9... Rc8 {[%clk
0:02:46.7]} 10. g4 {[%clk 0:02:36.1]} 10... hxg4 {[%clk 0:02:45.3]} 11. Qxg4
{[%clk 0:02:36.2]} 11... Ngf6 {[%clk 0:02:31.6]} 12. Qg2 {[%clk 0:02:36.2]}
12... b4 {[%clk 0:02:10.3]} 13. Ne2 {[%clk 0:02:22.6]} 13... e5 {[%clk
0:02:00.7]} 14. f4 {[%clk 0:02:09.8]} 14... c6 {[%clk 0:01:21.4]} 15. dxe5
{[%clk 0:02:06.2]} 15... dxe5 {[%clk 0:01:01]} 16. fxe5 {[%clk 0:02:06.1]} 16...
Nh5 {[%clk 0:01:01.3]} 17. e6 {[%clk 0:02:06.3]} 17... O-O {[%clk 0:00:38.2]}
18. Rxd7 {[%clk 0:01:36]} 18... Qa5 {[%clk 0:00:37.1]} 19. exf7+ {[%clk
0:01:35.9]} 19... Kh7 {[%clk 0:00:27.3]} 20. Kb1 {[%clk 0:01:28.7]} 20... b3
{[%clk 0:00:20.2]} 21. axb3 {[%clk 0:01:21.5]} 21... Rcd8 {[%clk 0:00:17.7]} 22.
Rxd8 {[%clk 0:00:55.3]} 22... Rxd8 {[%clk 0:00:18.6]} 23. Nc1 {[%clk 0:00:50.7]}
23... Qe5 {[%clk 0:00:18.3]} 24. c3 {[%clk 0:00:48.1]} 24... Rd1 {[%clk
0:00:18.2]} 25. Kc2 {[%clk 0:00:43]} 25... Rxf1 {[%clk 0:00:16.1]} 26. Qxf1
{[%clk 0:00:42.7]} 26... Qxe4+ {[%clk 0:00:14.5]} 27. Qd3 {[%clk 0:00:43.4]}
27... Qe6 {[%clk 0:00:13.8]} 28. Rf3 {[%clk 0:00:37.7]} 28... Nf6 {[%clk
0:00:12.7]} 29. Bg5 {[%clk 0:00:34.1]} 29... Qxf7 {[%clk 0:00:06.8]} 30. h5
{[%clk 0:00:33.7]} 1-0

[Event "Late-Titled-Tuesday-Blitz-September-19-2023"]
[Site "Chess.com"]
[Date "2023.09.19"]
[Round "3"]
[White "filipluczak05"]
[Black "Jarming"]
[Result "1-0"]
[WhiteElo "2549"]
[BlackElo "2726"]
[TimeControl "180+1"]
[EndTime "14:26:16 PDT"]
[Termination "filipluczak05 won by resignation"]

1. d4 {[%clk 0:03:00.9]} 1... Nf6 {[%clk 0:02:58.2]} 2. Nc3 {[%clk 0:02:59]}
2... e6 {[%clk 0:02:57.6]} 3. Bf4 {[%clk 0:02:56.1]} 3... Bb4 {[%clk 0:02:56.8]}
4. e3 {[%clk 0:02:56.3]} 4... Nd5 {[%clk 0:02:56]} 5. Ne2 {[%clk 0:02:56.7]}
5... c5 {[%clk 0:02:54.3]} 6. a3 {[%clk 0:02:35.4]} 6... Bxc3+ {[%clk
0:02:51.4]} 7. Nxc3 {[%clk 0:02:22.1]} 7... Nxf4 {[%clk 0:02:41.7]} 8. exf4
{[%clk 0:02:21.9]} 8... cxd4 {[%clk 0:02:40.3]} 9. Qxd4 {[%clk 0:02:22]} 9...
O-O {[%clk 0:02:41.1]} 10. Qd6 {[%clk 0:02:14.5]} 10... b6 {[%clk 0:02:35]} 11.
O-O-O {[%clk 0:02:11.1]} 11... Bb7 {[%clk 0:02:34.7]} 12. h4 {[%clk 0:01:59.5]}
12... Qf6 {[%clk 0:02:31.5]} 13. Rg1 {[%clk 0:01:41.9]} 13... Nc6 {[%clk
0:02:28]} 14. g4 {[%clk 0:01:34.7]} 14... Rfd8 {[%clk 0:02:25.1]} 15. g5 {[%clk
0:01:33.7]} 15... Qe7 {[%clk 0:02:25.2]} 16. h5 {[%clk 0:01:23.2]} 16... Kf8
{[%clk 0:02:21.7]} 17. h6 {[%clk 0:01:22.9]} 17... gxh6 {[%clk 0:02:19]} 18. Qd3
{[%clk 0:01:16.8]} 18... f5 {[%clk 0:02:15]} 19. gxf6 {[%clk 0:01:13.6]} 19...
Qxf6 {[%clk 0:02:14.7]} 20. Qxh7 {[%clk 0:01:13.3]} 20... Ne7 {[%clk 0:02:12.4]}
21. Bg2 {[%clk 0:01:03.5]} 21... d5 {[%clk 0:02:05]} 22. Bh3 {[%clk 0:00:59.7]}
22... Rac8 {[%clk 0:01:49]} 23. Rde1 {[%clk 0:00:49.2]} 23... Rd6 {[%clk
0:01:41.8]} 24. Bxe6 {[%clk 0:00:39]} 24... Rxe6 {[%clk 0:01:37.4]} 25. Rxe6
{[%clk 0:00:39]} 25... Qxe6 {[%clk 0:01:38.3]} 26. Qh8+ {[%clk 0:00:29.2]} 26...
Ng8 {[%clk 0:01:37.6]} 27. Qg7+ {[%clk 0:00:28.3]} 27... Ke8 {[%clk 0:01:36.6]}
28. f5 {[%clk 0:00:25.6]} 28... Qf7 {[%clk 0:01:30.2]} 29. Qxg8+ {[%clk
0:00:19.2]} 29... Qxg8 {[%clk 0:01:30.1]} 30. Rxg8+ {[%clk 0:00:19.6]} 30... Kd7
{[%clk 0:01:30.7]} 31. Rg7+ {[%clk 0:00:20]} 31... Kc6 {[%clk 0:01:29.9]} 32.
Rg6+ {[%clk 0:00:20.5]} 32... Kc5 {[%clk 0:01:29.2]} 33. Rxh6 {[%clk 0:00:20.6]}
33... Rf8 {[%clk 0:01:24.8]} 34. f6 {[%clk 0:00:19.6]} 34... d4 {[%clk
0:01:24.6]} 35. Ne2 {[%clk 0:00:18.4]} 35... Be4 {[%clk 0:01:16]} 36. Nf4 {[%clk
0:00:18.3]} 36... Kd6 {[%clk 0:01:15.3]} 37. Kd2 {[%clk 0:00:18.2]} 37... Ke5
{[%clk 0:01:15.5]} 38. Nd3+ {[%clk 0:00:18.5]} 38... Bxd3 {[%clk 0:01:15.4]} 39.
Kxd3 {[%clk 0:00:19.4]} 39... Ke6 {[%clk 0:01:10.3]} 40. f3 {[%clk 0:00:16.9]}
40... Rc8 {[%clk 0:01:08.7]} 41. Rh7 {[%clk 0:00:16.4]} 41... a5 {[%clk
0:01:08.4]} 42. Rb7 {[%clk 0:00:16.4]} 42... Kxf6 {[%clk 0:01:06.2]} 43. Rxb6+
{[%clk 0:00:16.8]} 43... Ke5 {[%clk 0:01:07.1]} 44. Rb5+ {[%clk 0:00:17.3]}
44... Kf4 {[%clk 0:01:07.6]} 45. Rxa5 {[%clk 0:00:17.9]} 45... Kxf3 {[%clk
0:01:08.5]} 46. Rd5 {[%clk 0:00:18.4]} 46... Rb8 {[%clk 0:01:07.5]} 47. b3
{[%clk 0:00:17.8]} 47... Rc8 {[%clk 0:01:06.7]} 48. Rxd4 {[%clk 0:00:17.9]}
48... Kf2 {[%clk 0:01:07.3]} 49. Rc4 {[%clk 0:00:18.3]} 49... Rd8+ {[%clk
0:01:06.8]} 50. Kc3 {[%clk 0:00:18.8]} 50... Ke2 {[%clk 0:01:07.6]} 51. a4
{[%clk 0:00:19.2]} 51... Kd1 {[%clk 0:01:07.9]} 52. Rd4+ {[%clk 0:00:19.8]}
52... Kc1 {[%clk 0:01:08.8]} 53. Rxd8 {[%clk 0:00:19.6]} 1-0

[Event "Late-Titled-Tuesday-Blitz-September-19-2023"]
[Site "Chess.com"]
[Date "2023.09.19"]
[Round "3"]
[White "GlavkonVVS"]
[Black "Lady_Nika"]
[Result "0-1"]
[WhiteElo "2592"]
[BlackElo "2459"]
[TimeControl "180+1"]
[EndTime "14:26:17 PDT"]
[Termination "Lady_Nika won by resignation"]

1. c4 {[%clk 0:03:00.9]} 1... e6 {[%clk 0:02:57.2]} 2. g3 {[%clk 0:03:00.1]}
2... d5 {[%clk 0:02:57.5]} 3. Bg2 {[%clk 0:03:00.7]} 3... Nf6 {[%clk 0:02:57.8]}
4. Nf3 {[%clk 0:03:01.3]} 4... c5 {[%clk 0:02:57.6]} 5. O-O {[%clk 0:03:01.4]}
5... Nc6 {[%clk 0:02:58]} 6. d3 {[%clk 0:02:58.6]} 6... d4 {[%clk 0:02:58.2]} 7.
e3 {[%clk 0:02:59.1]} 7... e5 {[%clk 0:02:58.5]} 8. exd4 {[%clk 0:02:59.6]} 8...
exd4 {[%clk 0:02:58.3]} 9. Re1+ {[%clk 0:03:00.2]} 9... Be7 {[%clk 0:02:58.6]}
10. b4 {[%clk 0:02:53.8]} 10... Nxb4 {[%clk 0:02:52.6]} 11. Ne5 {[%clk
0:02:45.7]} 11... O-O {[%clk 0:02:51.8]} 12. a3 {[%clk 0:02:45.8]} 12... Na6
{[%clk 0:02:48.4]} 13. Nd2 {[%clk 0:02:41]} 13... Rb8 {[%clk 0:02:46.9]} 14. Nb3
{[%clk 0:02:28.7]} 14... Bd6 {[%clk 0:02:40.6]} 15. Bg5 {[%clk 0:02:26.7]} 15...
h6 {[%clk 0:02:40]} 16. Bd2 {[%clk 0:02:07.3]} 16... Bf5 {[%clk 0:02:36.9]} 17.
Na5 {[%clk 0:01:46.1]} 17... Bxe5 {[%clk 0:02:29.7]} 18. Rxe5 {[%clk 0:01:43.8]}
18... Bxd3 {[%clk 0:02:29.5]} 19. Nxb7 {[%clk 0:01:42.1]} 19... Qd7 {[%clk
0:01:51.5]} 20. Bxh6 {[%clk 0:01:28.2]} 20... Bg6 {[%clk 0:01:29.3]} 21. Nxc5
{[%clk 0:00:50.7]} 21... Nxc5 {[%clk 0:01:28.6]} 22. Rxc5 {[%clk 0:00:50.9]}
22... gxh6 {[%clk 0:01:27.3]} 23. Qd2 {[%clk 0:00:49.8]} 23... Kg7 {[%clk
0:01:25.1]} 24. Rd1 {[%clk 0:00:46.9]} 24... d3 {[%clk 0:01:25]} 25. h4 {[%clk
0:00:44.1]} 25... Qd4 {[%clk 0:01:21.5]} 26. Rc7 {[%clk 0:00:31.9]} 26... Rb2
{[%clk 0:01:20.4]} 27. Qe3 {[%clk 0:00:25.3]} 27... Qxe3 {[%clk 0:01:15.7]} 28.
fxe3 {[%clk 0:00:25.5]} 28... d2 {[%clk 0:01:15.8]} 29. Rb7 {[%clk 0:00:18.3]}
29... Rxb7 {[%clk 0:01:11.8]} 30. Bxb7 {[%clk 0:00:18.4]} 30... Rd8 {[%clk
0:01:11.7]} 31. Bd5 {[%clk 0:00:18.4]} 31... Ne4 {[%clk 0:00:54.6]} 32. Kg2
{[%clk 0:00:11.6]} 32... Bh5 {[%clk 0:00:52.7]} 33. Bxe4 {[%clk 0:00:02.6]}
33... Bxd1 {[%clk 0:00:52.2]} 0-1